Cogmind - Beta 16.1 @@@ ROGUE MODE // 2026.04.10 @ 18:30:00 Player: Lyft Result: Destroyed by YI-UF0 with YI-UF0's Doublenader Performance ------------- Evolutions (0) 0 Regions Visited (2) 400 Robots Destroyed (14) 70 Value Destroyed (222) 222 Prototype IDs (0) 0 Alien Tech Used (0) 0 Bonus (0) 0 TOTAL SCORE: 692 Bonus ------- None Cogmind --------- Core Integrity 0/250 Matter 300/300 Energy 100/100 System Corruption 1% Temperature Cool (0) Movement Core (1350) Ox26 Location -10/Mines Parts ------- > --- POWER (1) -------- (None) > --- PROPULSION (2) --- (None) > --- UTILITY (2) ------ Huge Storage Unit Targeting Computer > --- WEAPON (2) ------- (None) > --- INVENTORY (25) --- Light Ion Engine Light Treads Seismic Detector Beam Cannon Beam Cannon Light Assault Rifle Grenade Launcher Grenade Launcher Datajack Mining Laser Mining Laser Peak State ------------ > --- POWER ------------ Ion Engine > --- PROPULSION ------- Light Treads Compact Wheel > --- UTILITY ---------- Huge Storage Unit Targeting Computer > --- WEAPON ----------- EM Pulse Gun Assault Rifle > --- INVENTORY -------- Light Ion Engine Light Treads Compact Wheel Seismic Detector Beam Cannon Beam Cannon Light Assault Rifle Grenade Launcher Datajack Mining Laser [Rating: 8] Favorites ----------- Power Ion Engine Engine Ion Engine Propulsion Compact Wheel Treads Light Treads Leg Aluminum Leg Wheel Compact Wheel Utility Huge Storage Unit Device Seismic Detector Storage Huge Storage Unit Processor Targeting Computer Weapon Assault Rifle Energy Gun EM Pulse Gun Ballistic Gun Assault Rifle Build | -11 -10 -10 ------- Run | Yrd Mat Min Slots Evolved . | . . . Power . | . . . Propulsion . | . . . Utility . | . . . Weapon . | . . . Parts Attached 8 | 4 4 . Power 1 | . 1 . Engine 1 | . 1 . Core . | . . . Reactor . | . . . Propulsion 3 | 2 1 . Treads 1 | 1 . . Leg . | . . . Wheel 2 | 1 1 . Hover . | . . . Flight . | . . . Utility 3 | 1 2 . Device 1 | 1 . . Storage 1 | . 1 . Processor 1 | . 1 . Hackware . | . . . Protection . | . . . Artifact . | . . . Weapon 1 | 1 . . Energy Gun . | . . . Energy Cannon . | . . . Ballistic Gun 1 | 1 . . Ballistic Cannon . | . . . Launcher . | . . . Special Weapon . | . . . Impact Weapon . | . . . Slashing Weapon . | . . . Piercing Weapon . | . . . Special Melee Weapon . | . . . Unidentified Prototypes . | . . . Parts Lost 5 | . . 5 Power 1 | . . 1 Propulsion 2 | . . 2 Utility . | . . . Weapon 2 | . . 2 Highest Loss Streak 5 | . . 5 To Critical Strikes . | . . . Average Backups 7 | 2 7 10 Power . | 1 . 1 Propulsion 1 | 1 1 1 Utility . | . . 1 Weapon 4 | . 4 6 Tool/Special . | . . . Unused Backups 13 | 2 3 8 Power 3 | . 2 1 Propulsion . | . . . Utility 1 | . 1 . Weapon 8 | 2 . 6 Tool/Special 1 | . . 1 Average Slot Usage (%) 98 | . 100 95 Engine 13 | . 14 13 Treads 13 | . 14 13 Wheel 13 | . 14 13 Device 8 | . 10 . Storage 14 | . 14 14 Processor 5 | . 3 14 Energy Gun 13 | . 14 12 Ballistic Gun 13 | . 14 13 Peak Build Rating 8 | 7 8 8 Average Rating 7 | 6 7 7 On Entrance 7 | 6 7 8 Avg Prop Armor Cover (%) 12 | 12 12 12 Naked Turns . | . . . Heaviest Build 90 | 15 90 87 Greatest Support 16 | 16 16 16 Greatest Overweight (x) 5 | . 5 5 Average Overweight (x) 4 | . 4 5 Largest Inventory Capacity 25 | 8 25 25 Average Capacity 22 | 8 23 25 Most Carried 11 | 6 10 11 Average Carried 7 | 2 7 10 Final Capacity 25 | 8 25 25 Final Carried 11 | 3 10 11 Class Distribution -------------------- 100% | Mutant Dominant Class ---------------- Mutant | -10/Materials Mutant | -10/Mines Resources | -11 -10 -10 ----------- Run | Yrd Mat Min Matter Collected 441 | 275 166 . Remotely . | . . . Salvage Created 680 | 118 562 . Parts 37 | 6 31 . Haulers Intercepted 1 | . 1 . Recyclers Shooed 6 | 2 4 . Parts Field Recycled . | . . . Retrieved Matter . | . . . Parts Self-Destructed . | . . . Prevented . | . . . Parts Restored . | . . . Kills | -11 -10 -10 ------- Run | Yrd Mat Min Combat Hostiles Destroyed 4 | . 4 . Guns 4 | . 4 . Classes Destroyed 7 | 2 5 . Worker 1 | . 1 . Tunneler 2 | 2 . . Hauler 1 | . 1 . Recycler 4 | 1 3 . Operator 1 | . 1 . Watcher 1 | . 1 . Grunt 4 | . 4 . Best Kill Streak 5 | 2 5 . Combat Bots Only 2 | . 2 . Max Kills in Single Turn 1 | 1 1 . Gunslinging . | . . . Exploded . | . . . Melee . | . . . Uniques/NPCs Destroyed . | . . . Combat | -11 -10 -10 -------- Run | Yrd Mat Min Hostile Shots Fired 50 | . 36 14 Missed 12 | . 10 2 Hits 38 | . 26 12 Projectile 38 | . 26 12 AOE 15 | . . 15 Damage Taken 826 | . 299 527 Core 268 | . 58 210 Absorbed by Shields . | . . . Core Remaining (%) 100 | 100 . . Volleys Fired 52 | 15 37 . Largest 2 | 2 2 . Hottest 60 | 60 60 . Shots Fired 104 | 30 74 . Gun 104 | 30 74 . Cannon . | . . . Launcher . | . . . Special . | . . . Kinetic 52 | 15 37 . Thermal . | . . . Explosive . | . . . Electromagnetic 52 | 15 37 . Robot Hit Streak 8 | 3 8 . Robot Miss Streak 3 | 3 3 . Penetration Max . | . . . Secondary Targets 1 | . 1 . Max Gunslinging Chain 1 | . 1 . Shots Hit Robots 63 | 16 47 . Core Hits 24 | 4 20 . Critical Kills . | . . . Critical Parts Destroyed . | . . . Critical Strikes . | . . . Melee Attacks . | . . . Impact . | . . . Slashing . | . . . Piercing . | . . . Sneak Attacks . | . . . Combat Hostiles . | . . . Follow-up Attacks . | . . . Damage Inflicted 831 | 203 628 . Guns 831 | 203 628 . Cannons . | . . . Explosions . | . . . Melee . | . . . Ramming . | . . . Kinetic 369 | 120 249 . Thermal . | . . . Explosive . | . . . Electromagnetic 462 | 83 379 . Impact . | . . . Slashing . | . . . Piercing . | . . . Highest Corruption 1 | . 1 1 Average Corruption 1 | . 1 1 Corruption Purged . | . . . Corruption Blocked . | . . . Effects 2 | . 2 . Matter Fused 1 | . 1 . Data Loss (major) 1 | . 1 . Overload Shots . | . . . Overflow Damage . | . . . Projectiles . | . . . Explosions . | . . . Melee . | . . . Knockbacks . | . . . Impact . | . . . Kinetic . | . . . Secondary . | . . . Self-Inflicted Damage . | . . . Shots . | . . . Rammed . | . . . Targets Rammed . | . . . Kicked . | . . . Crushed . | . . . Highest Temperature 84 | . 84 . Average Temperature 56 | . 56 . Received Heat Transfer 168 | . 168 . Siege Activations . | . . . Martial Activations . | . . . Shielding Activations . | . . . Robots Disrupted . | . . . Combat Hostiles . | . . . Robots Corrupted . | . . . Combat Hostiles . | . . . Parts Fried 1 | . 1 . Impact Corruptions . | . . . Robots Melted . | . . . Combat Hostiles . | . . . Parts Melted . | . . . Heat Transferred . | . . . Parts Sabotaged . | . . . Parts Stolen . | . . . Parts Stripped . | . . . Power Chain Reactions . | . . . Alert | -11 -10 -10 ------- Run | Yrd Mat Min Maximum Alert Level . | . . . Low Security (%) 100 | 100 100 100 Level 1 . | . . . Level 2 . | . . . Level 3 . | . . . Level 4 . | . . . Level 5 . | . . . High Security . | . . . Max Security . | . . . Peak Influence 52 | 10 52 1 Initial 1 | . . 1 Average 7 | 1 10 . Influence Increases 162 | 15 147 . Destroy 0b10 Robot/C 80 | . 80 . Destroy 0b10 Robot/NC 50 | 15 35 . Destroy Leader 24 | . 24 . Successful Hack 5 | . 5 . Destroy Structure 3 | . 3 . Influence Decreases 162 | 15 143 4 Entered New Map 3 | . . 3 Time Decay 159 | 15 143 1 Squads Dispatched 2 | . 2 . Investigation 1 | . 1 . Extermination . | . . . Reinforcement 1 | . 1 . Assault . | . . . Garrison . | . . . Intercept . | . . . Searches Triggered . | . . . Construction Impeded . | . . . Haulers Reinforced . | . . . Active Scanning Responses . | . . . Cargo Convoy Interrupts . | . . . Stealth | -11 -10 -10 --------- Run | Yrd Mat Min Distress Signals 1 | . 1 . Communications Jammed . | . . . Distress Signals . | . . . Times Spotted 7 | . 6 1 Peak Tracking Total 2 | . 2 1 Tactical Retreats . | . . . Traps | -11 -10 -10 ------- Run | Yrd Mat Min Traps Triggered 2 | . 2 . Indirectly . | . . . Trap Hack Attempts . | . . . Triggered . | . . . Disarmed . | . . . Reprogrammed . | . . . Reused . | . . . Traps Extracted . | . . . Installed . | . . . Triggered . | . . . Machines | -11 -10 -10 ---------- Run | Yrd Mat Min Machines Disabled . | . . . Max in Single Turn . | . . . Machines Repaired . | . . . Machines Dismantled . | . . . Machines Sabotaged . | . . . Overloaded Fab Kills . | . . . Hacking | -11 -10 -10 --------- Run | Yrd Mat Min Machines Accessed 2 | . 2 . Terminals 2 | . 2 . Fabricators . | . . . Repair Stations . | . . . Recycling Units . | . . . Scanalyzers . | . . . Garrison Access . | . . . Total Hacks 5 | . 5 . Successful 2 | . 2 . Failed 3 | . 3 . Catastrophic . | . . . Database Lockouts . | . . . Manual 5 | . 5 . Terminals 5 | . 5 . Fabricators . | . . . Repair Stations . | . . . Recycling Units . | . . . Scanalyzers . | . . . Garrison Access . | . . . Terminal Hacks . | . . . Fabricator Hacks . | . . . Repair Station Hacks . | . . . Recycling Unit Hacks . | . . . Scanalyzer . | . . . Garrison Access Hacks . | . . . Unauthorized Hacks 2 | . 2 . Terminals 2 | . 2 . Botnet 1 | . 1 . Operators 1 | . 1 . Fabricators . | . . . Repair Stations . | . . . Recycling Units . | . . . Scanalyzers . | . . . Garrison Access . | . . . Data Cores Recovered . | . . . Used . | . . . Hacking Detections 2 | . 2 . Full Trace Events . | . . . Feedback Events . | . . . Feedback Blocked . | . . . Robot Schematics Acquired . | . . . Robots Built . | . . . Authchips . | . . . Time . | . . . Total Robot Build Rating . | . . . Part Schematics Acquired . | . . . Parts Built . | . . . Authchips . | . . . Time . | . . . Total Part Build Rating . | . . . Part Studies Acquired . | . . . Parts Repaired . | . . . Time . | . . . Parts Recycled . | . . . Recycled Matter . | . . . Retrieved Matter . | . . . Retrieved Components . | . . . Parts Scanalyzed . | . . . Part Schematics Acquired . | . . . Parts Damaged . | . . . Bothacking | -11 -10 -10 ------------ Run | Yrd Mat Min Used RIF Installer . | . . . Robots Hacked . | . . . Non-combat . | . . . Combat . | . . . Robot Hacks Applied . | . . . Relay Couplers Released . | . . . Fabnet Peak Effective % . | . . . Robots Rewired . | . . . Allies Hacked . | . . . Hacks Repelled . | . . . Allies | -11 -10 -10 -------- Run | Yrd Mat Min Total Allies . | . . . Largest Group . | . . . Highest-Rated Group . | . . . Highest-Rated Ally . | . . . Total Orders . | . . . Ally Attacks . | . . . Total Damage . | . . . Kills . | . . . Allies Corrupted . | . . . Allies Melted . | . . . Intel | -11 -10 -10 ------- Run | Yrd Mat Min Active Infowar (turns) 490 | 3 487 . Seismic 490 | 3 487 . Robot Analysis Total . | . . . Derelict Logs Recovered 1 | . . 1 Drone Launches . | . . . Drone Recoveries . | . . . Exploration | -11 -10 -10 ------------- Run | Yrd Mat Min Turns Passed 916 | 86 647 183 Spaces Moved 438 | 33 314 91 Core . | . . . Treads . | . . . Legs . | . . . Wheels 438 | 33 314 91 Hover . | . . . Flight . | . . . Fastest Speed 100 | 100 100 175 Average Speed 160 | 100 163 175 Slowest Speed 175 | 100 175 175 Overloaded Moves . | . . . Propulsion Burnouts . | . . . Robots Hopped . | . . . Potential Cave-ins . | . . . Cave-ins Triggered . | . . . Exploration Rate (%) 24 | 3 46 24 Regions Visited 2 Branch Regions 1 Pre-discovered Areas . | . . . Known Exits Taken . | . . . Unknown Exits Taken 2 | 1 1 . Scrap Searched . | . . . Spaces Dug . | . . . Terrain Destroyed . | . . . Melee . | . . . Projectile . | . . . AOE . | . . . Terrain Rammed . | . . . Walls Destroyed . | . . . Machines Disabled . | . . . Actions | -11 -10 -10 --------- Run | Yrd Mat Min Total 546 | 57 374 115 Wait 30 | . 7 23 Move 436 | 32 313 91 Hop . | . . . Pick Up 13 | 2 10 1 Fast Attach . | . . . Attach 3 | 3 . . Detach . | . . . Swap 5 | 1 4 . Drop 7 | 4 3 . Fire 52 | 15 37 . Melee . | . . . Ram . | . . . Kick . | . . . Crush . | . . . Escape Stasis . | . . . Rewire . | . . . Trap . | . . . Miscellaneous . | . . . Route ------- -11/Scrapyard -10/Materials (discovered 2 exits: [*Mat] / [*Min]) -10/Mines History --------- Turn | Location | Event 22 | -11/Scrapyard | Discovered new exit (range 1) 87 | -11/Scrapyard | Entered Materials 293 | -10/Materials | Discovered new exit (range 12) 313 | -10/Materials | Build established: Mutant 675 | -10/Materials | Discovered new exit (range 15) 734 | -10/Materials | Entered Mines 849 | -10/Mines | YI-UF0 nonchalantly dropped a Grenade Launcher on the ground 901 | -10/Mines | Core integrity fell below 50% 909 | -10/Mines | Core integrity fell below 20% 917 | -10/Mines | Destroyed by YI-UF0 with YI-UF0's Doublenader Last Messages --------------- 00904_ Lgt. Treads destroyed. 00906_ YI-UF0: "BWOOM!" 00906_ K-01 Serf destroyed. 00907_ The unstable cave ceiling collapses. 00907_ U-05 Engineer lays Concrete. 00907_ K-01 Serf collects debris. 00908_ U-05 Engineer lays Concrete. 00908_ Lgt. Ion Engine destroyed. 00908_ Com. Wheel destroyed. 00909_ U-05 Engineer lays Concrete. 00910_ U-05 Engineer builds a Wall. 00910_ U-05 Engineer lays Concrete. 00912_ YI-UF0: "KABOOM!" 00912_ R-06 Scavenger destroyed. 00913_ U-05 Engineer lays Concrete. 00915_ YI-UF0: "BOOSH!" 00915_ U-05 Engineer lays Concrete. 00916_ The unstable cave ceiling collapses. 00916_ U-05 Engineer builds a Wall. 00917_ The unstable cave ceiling collapses. Map ----- +----------------------------------------------------+ | ?????????????????# ######## ##?? | | ??????????????????####### ##? | | ????????????????????????# ######## """ #? | | ????????????????????????####??????# """ #? | | ?????????????????????????????????## """ #? | | ?????????????????????????????????# ##? | | ?????????????????????????????????# ## #?? | | ????????????????????????????????# ### #?? | | ????????????????????????????????# ##?# #?? | | ????????????????????????????????####??# #?? | | ??????????????????????????????????????# #?? | | ?????????????????????????????????????## #?? | | ?????????????????###????????????????## #?? | | ???????????????### ????????####????# #?? | | ???????????? ??# ##??????## ##?## #?? | | ???????????? # ??????# ###]= #?? | | ??????????? ??????# #?? | | ??????????? = # #??????# ! = #?? | | ?????????? = ####??##! #?? | | ??????????? =* ##??### ## ##?? | | ?????? ??? * #????# ######??? | | ?????? ? ####?# #???????? | | ????? ???? # # g ### #???????? | | ????? ??????# ## #???????? | | ????? ?????# ## #???????? | | ?????? ????# @ #### #???????? | | ???????? ???## u #???????? | | ?????????# ???# % #???????? | | ??????????# #### ! #####???????? | | ???????????# ##???????????? | | ???????????## #????????????? | | ????????????### ##????????????? | | ??????????????###### ##???????????? | | ???????????????????### #???????????? | | ?????????????????????#### #???????????? | | ????????????????????????## ##???????????? | | ?????????????????????????## #????????????? | | ??????????????????????????# #????????????? | | ??????????????????????????# #????????????? | | ??????????????????????????# #????????????? | | ??????????????????????????# #????????????? | | ??????????????????????????#$ ????????????? | | ??????????????????????????####????????????? | | ??????????????????????????????????????????? | | ??????????????????????????????????????????? | | ??????????????????????????????????????????? | | ??????????????????????????????????????????? | | ??????????????????????????????????????????? | | ??????????????????????????????????????????? | | ??????????????????????????????????????????? | +----------------------------------------------------+ Best States ------------- Heat Dissipation 25 Energy Generation 10 Energy Capacity 250 Matter Stores 300 Matter Capacity 300 Sight Range 16 Terrain Scan Density 10 Evasion (%) 40 Targeting Accuracy 5 Recoil Reduction 1 Item Schematics ----------------- None Robot Schematics ------------------ None Fabricated ------------ Nothing Repaired ---------- Nothing Studied --------- None Alien Tech Used ----------------- None Achievements -------------- None Challenges ------------ None Game ------ Seed CannonGyrokineticChainsword Manual? 0 Play Time 00:07:29 Cumulative 74.4 hours Start 2026.04.10 @ 18:23:38 End 2026.04.10 @ 18:30:00 Sessions 1 Manual Loads 0 Difficulty Rogue Special Mode None Game No. 70 Rogue 60 Adventurer 9 Explorer 1 Win Type - Total 0 Types 0/0/0/0/0/0/0/0/0/0 Lore% 38 Gallery% 34 Achievement% 27 Wizard Run 0 Options --------- Layout 2 ASCII 0 Keyboard 0 Movement Mouse Keybinds 0 Fullscreen 1 Font 48/Terminus Map View 50x44 Zoom Use 0% Tactical HUD 1 Map Filters NONE Filters NONE Steam 1 RUN: 33fd93d5-dae9-4600-9666-20399d124905